[Event "November 21 Early 2023"]
[Site "https://www.chess.com"]
[Date "2023.11.21"]
[Round "5"]
[White "Spichkin, Alexander"]
[Black "Statham_l3"]
[Result "0-1"]
[Board "121"]
[TimeControl "180+1"]
[WhiteFideId "4144074"]
[WhiteElo "1968"]
[BlackElo "2560"]
[WhiteTeam "RUS"]
[WhiteClock "0:01:24"]
[BlackClock "0:00:17"]

1. f4 {[%clk 0:02:58]}  e5 {[%clk 0:02:57]} 2. d3 {[%clk 0:02:56]}  d5 {[%clk 0:02:54]} 3. Nc3 {[%clk 0:02:54]}  d4 {[%clk 0:02:52]} 4. Ne4 {[%clk 0:02:54]}  f5 {[%clk 0:02:51]} 5. Ng3 {[%clk 0:02:51]}  h5 {[%clk 0:02:45]} 6. h4 {[%clk 0:02:43]}  Bd6 {[%clk 0:02:32]} 7. Nh3 {[%clk 0:02:37]}  Nf6 {[%clk 0:02:14]} 8. fxe5 {[%clk 0:02:32]}  Bxe5 {[%clk 0:02:12]} 9. Bf4 {[%clk 0:02:33]}  Bxf4 {[%clk 0:01:56]} 10. Nxf4 {[%clk 0:02:32]}  Ng4 {[%clk 0:01:40]} 11. c3 {[%clk 0:02:31]}  Qd6 {[%clk 0:01:29]} 12. Qa4+ {[%clk 0:02:29]}  Nc6 {[%clk 0:01:24]} 13. Nfxh5 {[%clk 0:02:23]}  g6 {[%clk 0:01:17]} 14. O-O-O {[%clk 0:02:06]}  gxh5 {[%clk 0:01:16]} 15. Rh3 {[%clk 0:02:04]}  Nf2 {[%clk 0:01:12]} 16. cxd4 {[%clk 0:01:58]}  Nxh3 {[%clk 0:01:09]} 17. gxh3 {[%clk 0:01:57]}  Qxg3 {[%clk 0:01:02]} 18. d5 {[%clk 0:01:57]}  Qe3+ {[%clk 0:00:54]} 19. Kb1 {[%clk 0:01:57]}  Qd4 {[%clk 0:00:51]} 20. Qb3 {[%clk 0:01:41]}  Ne7 {[%clk 0:00:39]} 21. Bg2 {[%clk 0:01:40]}  Bd7 {[%clk 0:00:30]} 22. Qxb7 {[%clk 0:01:36]}  O-O {[%clk 0:00:29]} 23. Qxc7 {[%clk 0:01:31]}  Rab8 {[%clk 0:00:26]} 24. Rd2 {[%clk 0:01:28]}  Qg1+ {[%clk 0:00:22]} 25. Kc2 {[%clk 0:01:27]}  Rfc8 {[%clk 0:00:20]} 26. Qc3 {[%clk 0:01:25]}  Rxc3+ {[%clk 0:00:19]} 27. Kxc3 {[%clk 0:01:24]}  Qc5# {[%clk 0:00:17]} 0-1

[Event "November 21 Early 2023"]
[Site "https://www.chess.com"]
[Date "2023.11.21"]
[Round "5"]
[White "Ljukin, Sergei"]
[Black "Shuvalov, Evgenij"]
[Result "1/2-1/2"]
[Board "123"]
[TimeControl "180+1"]
[WhiteFideId "14102200"]
[BlackFideId "4187237"]
[WhiteElo "2312"]
[BlackElo "2059"]
[WhiteTeam "UKR"]
[BlackTeam "FID"]
[WhiteClock "0:00:11"]
[BlackClock "0:00:17"]

1. e4 {[%clk 0:03:00]}  e6 {[%clk 0:02:42]} 2. d4 {[%clk 0:03:00]}  d5 {[%clk 0:02:42]} 3. Nc3 {[%clk 0:03:00]}  Bb4 {[%clk 0:02:42]} 4. e5 {[%clk 0:03:00]}  c5 {[%clk 0:02:42]} 5. a3 {[%clk 0:03:01]}  Bxc3+ {[%clk 0:02:43]} 6. bxc3 {[%clk 0:03:02]}  Ne7 {[%clk 0:02:43]} 7. h4 {[%clk 0:03:02]}  Nbc6 {[%clk 0:02:41]} 8. h5 {[%clk 0:03:00]}  h6 {[%clk 0:02:39]} 9. Qg4 {[%clk 0:03:00]}  Rg8 {[%clk 0:02:29]} 10. Bd3 {[%clk 0:02:57]}  Nf5 {[%clk 0:01:37]} 11. Nf3 {[%clk 0:02:56]}  c4 {[%clk 0:01:34]} 12. Bxf5 {[%clk 0:02:55]}  exf5 {[%clk 0:01:35]} 13. Qg3 {[%clk 0:02:48]}  Qa5 {[%clk 0:01:22]} 14. Bd2 {[%clk 0:02:39]}  Be6 {[%clk 0:01:21]} 15. a4 {[%clk 0:02:37]}  O-O-O {[%clk 0:01:20]} 16. O-O {[%clk 0:02:37]}  g5 {[%clk 0:01:06]} 17. hxg6 {[%clk 0:02:36]}  Rxg6 {[%clk 0:01:06]} 18. Qh2 {[%clk 0:02:25]}  Rdg8 {[%clk 0:01:04]} 19. Nh4 {[%clk 0:02:01]}  Nxd4 {[%clk 0:00:21]} 20. Nxg6 {[%clk 0:01:10]}  Rxg6 {[%clk 0:00:22]} 21. Kh1 {[%clk 0:01:05]}  f4 {[%clk 0:00:17]} 22. Qxf4 {[%clk 0:00:58]}  Nc6 {[%clk 0:00:16]} 23. Qe3 {[%clk 0:00:34]}  d4 {[%clk 0:00:16]} 24. cxd4 {[%clk 0:00:32]}  Qd5 {[%clk 0:00:16]} 25. f3 {[%clk 0:00:28]}  Nxd4 {[%clk 0:00:16]} 26. Qe4 {[%clk 0:00:18]}  Nf5 {[%clk 0:00:11]} 27. Qxd5 {[%clk 0:00:16]}  Ng3+ {[%clk 0:00:11]} 28. Kg1 {[%clk 0:00:15]}  Bxd5 {[%clk 0:00:12]} 29. Rfe1 {[%clk 0:00:14]}  Kd7 {[%clk 0:00:10]} 30. Bf4 {[%clk 0:00:13]}  Nf5 {[%clk 0:00:10]} 31. Kf2 {[%clk 0:00:13]}  Ke6 {[%clk 0:00:10]} 32. Rab1 {[%clk 0:00:13]}  Nd4 {[%clk 0:00:09]} 33. Rb2 {[%clk 0:00:12]}  c3 {[%clk 0:00:09]} 34. Rb5 {[%clk 0:00:11]}  Nxb5 {[%clk 0:00:09]} 35. axb5 {[%clk 0:00:11]}  h5 {[%clk 0:00:09]} 36. Be3 {[%clk 0:00:11]}  a6 {[%clk 0:00:09]} 37. bxa6 {[%clk 0:00:11]}  bxa6 {[%clk 0:00:10]} 38. Ra1 {[%clk 0:00:11]}  Bc4 {[%clk 0:00:10]} 39. Rb1 {[%clk 0:00:10]}  Bb5 {[%clk 0:00:09]} 40. Rb3 {[%clk 0:00:10]}  Kxe5 {[%clk 0:00:10]} 41. Rxc3 {[%clk 0:00:10]}  Rc6 {[%clk 0:00:10]} 42. Rxc6 {[%clk 0:00:09]}  Bxc6 {[%clk 0:00:11]} 43. Bd2 {[%clk 0:00:08]}  Kd5 {[%clk 0:00:11]} 44. Ke3 {[%clk 0:00:08]}  Kc4 {[%clk 0:00:11]} 45. Kf4 {[%clk 0:00:08]}  Ba4 {[%clk 0:00:11]} 46. Kg5 {[%clk 0:00:08]}  Bxc2 {[%clk 0:00:11]} 47. Kxh5 {[%clk 0:00:08]}  Kb5 {[%clk 0:00:11]} 48. g4 {[%clk 0:00:08]}  a5 {[%clk 0:00:11]} 49. Kg5 {[%clk 0:00:07]}  a4 {[%clk 0:00:11]} 50. Kf6 {[%clk 0:00:08]}  Bd1 {[%clk 0:00:10]} 51. Kxf7 {[%clk 0:00:07]}  Bxf3 {[%clk 0:00:11]} 52. g5 {[%clk 0:00:07]}  Be4 {[%clk 0:00:11]} 53. g6 {[%clk 0:00:08]}  Bxg6+ {[%clk 0:00:11]} 54. Kxg6 {[%clk 0:00:08]}  Kc4 {[%clk 0:00:12]} 55. Bg5 {[%clk 0:00:07]}  Kb3 {[%clk 0:00:12]} 56. Bf6 {[%clk 0:00:08]}  a3 {[%clk 0:00:13]} 57. Bg7 {[%clk 0:00:09]}  a2 {[%clk 0:00:14]} 58. Bf6 {[%clk 0:00:09]}  Kc2 {[%clk 0:00:15]} 59. Bg7 {[%clk 0:00:10]}  Kb1 {[%clk 0:00:16]} 60. Bf6 {[%clk 0:00:10]}  a1=Q {[%clk 0:00:17]} 61. Bxa1 {[%clk 0:00:11]} 1/2-1/2

[Event "November 21 Early 2023"]
[Site "https://www.chess.com"]
[Date "2023.11.21"]
[Round "5"]
[White "Badelka, Olga"]
[Black "Ovezdurdyyeva, Jemal"]
[Result "1-0"]
[Board "124"]
[TimeControl "180+1"]
[WhiteFideId "13509926"]
[BlackFideId "14001888"]
[WhiteElo "2262"]
[BlackElo "2086"]
[WhiteTeam "FID"]
[BlackTeam "TKM"]
[WhiteClock "0:00:38"]
[BlackClock "0:00:32"]

1. c4 {[%clk 0:03:00]}  Nf6 {[%clk 0:02:59]} 2. Nc3 {[%clk 0:03:00]}  g6 {[%clk 0:02:59]} 3. d4 {[%clk 0:02:59]}  b6 {[%clk 0:02:58]} 4. e4 {[%clk 0:02:57]}  d6 {[%clk 0:02:59]} 5. Nf3 {[%clk 0:02:49]}  Bg7 {[%clk 0:02:58]} 6. h3 {[%clk 0:02:39]}  O-O {[%clk 0:02:58]} 7. Be3 {[%clk 0:02:26]}  c5 {[%clk 0:02:52]} 8. Be2 {[%clk 0:02:22]}  Nbd7 {[%clk 0:02:41]} 9. e5 {[%clk 0:02:17]}  Ne8 {[%clk 0:02:32]} 10. exd6 {[%clk 0:02:05]}  exd6 {[%clk 0:02:32]} 11. O-O {[%clk 0:02:05]}  Nc7 {[%clk 0:02:21]} 12. Bg5 {[%clk 0:01:52]}  f6 {[%clk 0:02:12]} 13. Be3 {[%clk 0:01:49]}  Bb7 {[%clk 0:02:05]} 14. Re1 {[%clk 0:01:49]}  Re8 {[%clk 0:01:54]} 15. Qd2 {[%clk 0:01:41]}  Qe7 {[%clk 0:01:43]} 16. Rad1 {[%clk 0:01:39]}  Rad8 {[%clk 0:01:40]} 17. Bf4 {[%clk 0:01:26]}  Nf8 {[%clk 0:01:32]} 18. Nd5 {[%clk 0:00:55]}  Nxd5 {[%clk 0:00:55]} 19. cxd5 {[%clk 0:00:56]}  Qf7 {[%clk 0:00:54]} 20. dxc5 {[%clk 0:00:51]}  bxc5 {[%clk 0:00:49]} 21. Bb5 {[%clk 0:00:41]}  Rxe1+ {[%clk 0:00:43]} 22. Nxe1 {[%clk 0:00:42]}  f5 {[%clk 0:00:35]} 23. Nf3 {[%clk 0:00:40]}  Qf6 {[%clk 0:00:32]} 24. Bg5 {[%clk 0:00:38]} 1-0

[Event "November 21 Early 2023"]
[Site "https://www.chess.com"]
[Date "2023.11.21"]
[Round "5"]
[White "Khater, Sherif"]
[Black "Tarasova, Viktoriya"]
[Result "0-1"]
[Board "125"]
[TimeControl "180+1"]
[WhiteFideId "2034280"]
[BlackFideId "4175840"]
[WhiteElo "2552"]
[BlackElo "2182"]
[WhiteTeam "USA"]
[BlackTeam "RUS"]
[WhiteClock "0:00:15"]
[BlackClock "0:00:11"]

1. c4 {[%clk 0:03:00]}  e5 {[%clk 0:02:57]} 2. Nc3 {[%clk 0:03:00]}  Nf6 {[%clk 0:02:55]} 3. g3 {[%clk 0:02:59]}  Bb4 {[%clk 0:02:53]} 4. Bg2 {[%clk 0:02:57]}  O-O {[%clk 0:02:52]} 5. e3 {[%clk 0:02:56]}  c6 {[%clk 0:02:50]} 6. Nge2 {[%clk 0:02:56]}  d5 {[%clk 0:02:46]} 7. cxd5 {[%clk 0:02:55]}  cxd5 {[%clk 0:02:47]} 8. d4 {[%clk 0:02:56]}  e4 {[%clk 0:02:44]} 9. O-O {[%clk 0:02:55]}  Nc6 {[%clk 0:02:43]} 10. a3 {[%clk 0:02:53]}  Be7 {[%clk 0:02:41]} 11. b4 {[%clk 0:02:54]}  a6 {[%clk 0:02:41]} 12. Bb2 {[%clk 0:02:53]}  Be6 {[%clk 0:02:38]} 13. Rc1 {[%clk 0:02:52]}  Rc8 {[%clk 0:02:37]} 14. Na4 {[%clk 0:02:52]}  b6 {[%clk 0:02:05]} 15. h3 {[%clk 0:02:45]}  Na7 {[%clk 0:02:03]} 16. Nf4 {[%clk 0:02:34]}  Rxc1 {[%clk 0:01:52]} 17. Qxc1 {[%clk 0:02:33]}  Bd7 {[%clk 0:01:52]} 18. Nc3 {[%clk 0:02:28]}  Bc6 {[%clk 0:01:50]} 19. Qc2 {[%clk 0:02:26]}  Qd7 {[%clk 0:01:48]} 20. Qb3 {[%clk 0:02:22]}  Rc8 {[%clk 0:01:45]} 21. Rc1 {[%clk 0:02:19]}  g5 {[%clk 0:01:42]} 22. Nfe2 {[%clk 0:02:19]}  Bd8 {[%clk 0:01:27]} 23. Kh2 {[%clk 0:01:56]}  Nb5 {[%clk 0:01:25]} 24. a4 {[%clk 0:01:45]}  Nd6 {[%clk 0:01:24]} 25. Ra1 {[%clk 0:01:41]}  Kg7 {[%clk 0:01:16]} 26. Ba3 {[%clk 0:01:28]}  Nc4 {[%clk 0:01:02]} 27. Bc1 {[%clk 0:01:21]}  h5 {[%clk 0:00:59]} 28. Bf1 {[%clk 0:01:21]}  Bc7 {[%clk 0:00:55]} 29. b5 {[%clk 0:01:17]}  Bb7 {[%clk 0:00:46]} 30. bxa6 {[%clk 0:01:16]}  Bxa6 {[%clk 0:00:46]} 31. Nb5 {[%clk 0:01:17]}  Bb8 {[%clk 0:00:44]} 32. Nec3 {[%clk 0:01:17]}  Na5 {[%clk 0:00:33]} 33. Qd1 {[%clk 0:01:11]}  h4 {[%clk 0:00:31]} 34. Ne2 {[%clk 0:01:07]}  Nc4 {[%clk 0:00:26]} 35. Nbc3 {[%clk 0:01:01]}  Bd6 {[%clk 0:00:24]} 36. Kg2 {[%clk 0:00:49]}  g4 {[%clk 0:00:23]} 37. Nf4 {[%clk 0:00:46]}  gxh3+ {[%clk 0:00:22]} 38. Kh2 {[%clk 0:00:41]}  Ng4+ {[%clk 0:00:19]} 39. Kg1 {[%clk 0:00:41]}  h2+ {[%clk 0:00:17]} 40. Kg2 {[%clk 0:00:37]}  h1=Q+ {[%clk 0:00:17]} 41. Kxh1 {[%clk 0:00:36]}  Nxf2+ {[%clk 0:00:18]} 42. Kg2 {[%clk 0:00:35]}  Nxd1 {[%clk 0:00:18]} 43. Nh5+ {[%clk 0:00:30]}  Kh6 {[%clk 0:00:18]} 44. Nxd1 {[%clk 0:00:28]}  Kxh5 {[%clk 0:00:16]} 45. Be2+ {[%clk 0:00:28]}  Kh6 {[%clk 0:00:15]} 46. g4 {[%clk 0:00:28]}  Rg8 {[%clk 0:00:15]} 47. Nf2 {[%clk 0:00:28]}  Bc8 {[%clk 0:00:14]} 48. a5 {[%clk 0:00:26]}  bxa5 {[%clk 0:00:12]} 49. Rb1 {[%clk 0:00:22]}  Bc7 {[%clk 0:00:12]} 50. Ra1 {[%clk 0:00:20]}  Qd6 {[%clk 0:00:12]} 51. Kf1 {[%clk 0:00:20]}  Qh2 {[%clk 0:00:11]} 52. Rb1 {[%clk 0:00:15]}  Bg3 {[%clk 0:00:11]} 0-1

[Event "November 21 Early 2023"]
[Site "https://www.chess.com"]
[Date "2023.11.21"]
[Round "5"]
[White "MIss_MIaMI"]
[Black "Tikhonov, Viacheslav"]
[Result "0-1"]
[Board "126"]
[TimeControl "180+1"]
[BlackFideId "44196407"]
[WhiteElo "2371"]
[BlackElo "2191"]
[BlackTeam "RUS"]
[WhiteClock "0:00:00"]
[BlackClock "0:01:35"]

1. e4 {[%clk 0:02:59]}  c5 {[%clk 0:02:58]} 2. Nf3 {[%clk 0:02:58]}  g6 {[%clk 0:02:58]} 3. d4 {[%clk 0:02:58]}  cxd4 {[%clk 0:02:58]} 4. c3 {[%clk 0:02:59]}  Bg7 {[%clk 0:02:53]} 5. Bc4 {[%clk 0:02:58]}  Nc6 {[%clk 0:02:46]} 6. O-O {[%clk 0:02:49]}  Nf6 {[%clk 0:02:27]} 7. e5 {[%clk 0:02:39]}  Ne4 {[%clk 0:01:57]} 8. cxd4 {[%clk 0:01:17]}  d5 {[%clk 0:01:48]} 9. Bb3 {[%clk 0:01:07]}  O-O {[%clk 0:01:47]} 10. h3 {[%clk 0:00:00]}  f6 {[%clk 0:01:35]} 0-1

[Event "November 21 Early 2023"]
[Site "https://www.chess.com"]
[Date "2023.11.21"]
[Round "5"]
[White "Omariev, Maksim"]
[Black "mkllnd1517"]
[Result "1/2-1/2"]
[Board "127"]
[TimeControl "180+1"]
[WhiteFideId "4193423"]
[WhiteElo "2546"]
[BlackElo "2363"]
[WhiteTeam "RUS"]
[WhiteClock "0:00:07"]
[BlackClock "0:00:04"]

1. g4 {[%clk 0:03:00]}  d5 {[%clk 0:02:57]} 2. Bg2 {[%clk 0:03:01]}  Bxg4 {[%clk 0:02:57]} 3. c4 {[%clk 0:03:00]}  c6 {[%clk 0:02:58]} 4. Qb3 {[%clk 0:03:00]}  Nf6 {[%clk 0:02:42]} 5. Qxb7 {[%clk 0:03:00]}  Nbd7 {[%clk 0:02:41]} 6. Nc3 {[%clk 0:02:58]}  e6 {[%clk 0:02:33]} 7. Qxc6 {[%clk 0:02:53]}  Rc8 {[%clk 0:02:33]} 8. Qa6 {[%clk 0:02:54]}  Rxc4 {[%clk 0:02:28]} 9. b3 {[%clk 0:02:54]}  Rc8 {[%clk 0:02:25]} 10. Ba3 {[%clk 0:02:26]}  Bxa3 {[%clk 0:02:01]} 11. Qxa3 {[%clk 0:02:26]}  Nc5 {[%clk 0:02:01]} 12. h3 {[%clk 0:02:12]}  Bh5 {[%clk 0:01:59]} 13. Qxa7 {[%clk 0:01:41]}  O-O {[%clk 0:01:56]} 14. Nf3 {[%clk 0:01:41]}  Nce4 {[%clk 0:01:02]} 15. Qd4 {[%clk 0:01:29]}  Re8 {[%clk 0:00:30]} 16. O-O {[%clk 0:01:18]}  Bxf3 {[%clk 0:00:30]} 17. Bxf3 {[%clk 0:01:19]}  e5 {[%clk 0:00:30]} 18. Qb4 {[%clk 0:00:28]}  Nxd2 {[%clk 0:00:25]} 19. Bg2 {[%clk 0:00:28]}  Nxf1 {[%clk 0:00:25]} 20. Rxf1 {[%clk 0:00:29]}  d4 {[%clk 0:00:23]} 21. Nb5 {[%clk 0:00:27]}  Qb6 {[%clk 0:00:18]} 22. a4 {[%clk 0:00:27]}  Red8 {[%clk 0:00:14]} 23. a5 {[%clk 0:00:25]}  Qe6 {[%clk 0:00:14]} 24. Qa4 {[%clk 0:00:16]}  Qa6 {[%clk 0:00:10]} 25. b4 {[%clk 0:00:11]}  Rb8 {[%clk 0:00:05]} 26. Nc7 {[%clk 0:00:11]}  Qd6 {[%clk 0:00:06]} 27. Nb5 {[%clk 0:00:05]}  Qd7 {[%clk 0:00:06]} 28. a6 {[%clk 0:00:03]}  Qxb5 {[%clk 0:00:06]} 29. Qxb5 {[%clk 0:00:03]}  Rxb5 {[%clk 0:00:07]} 30. a7 {[%clk 0:00:03]}  Rxb4 {[%clk 0:00:07]} 31. Ra1 {[%clk 0:00:03]}  Rbb8 {[%clk 0:00:03]} 32. axb8=Q {[%clk 0:00:03]}  Rxb8 {[%clk 0:00:04]} 33. Ra5 {[%clk 0:00:03]}  Re8 {[%clk 0:00:03]} 34. Bc6 {[%clk 0:00:03]}  Rc8 {[%clk 0:00:02]} 35. Bb7 {[%clk 0:00:02]}  Rb8 {[%clk 0:00:02]} 36. Bf3 {[%clk 0:00:01]}  Nd7 {[%clk 0:00:03]} 37. Ra6 {[%clk 0:00:01]}  f6 {[%clk 0:00:02]} 38. Bg4 {[%clk 0:00:01]}  Nf8 {[%clk 0:00:03]} 39. Ra7 {[%clk 0:00:01]}  g6 {[%clk 0:00:02]} 40. Kg2 {[%clk 0:00:02]}  Rd8 {[%clk 0:00:02]} 41. Bf3 {[%clk 0:00:02]}  h5 {[%clk 0:00:03]} 42. Bc6 {[%clk 0:00:03]}  Ne6 {[%clk 0:00:02]} 43. Bb5 {[%clk 0:00:03]}  Ng5 {[%clk 0:00:03]} 44. Bc4+ {[%clk 0:00:04]}  Kh8 {[%clk 0:00:03]} 45. h4 {[%clk 0:00:05]}  Ne4 {[%clk 0:00:03]} 46. Bd3 {[%clk 0:00:04]}  Nd6 {[%clk 0:00:04]} 47. Bxg6 {[%clk 0:00:04]}  Rg8 {[%clk 0:00:04]} 48. Kh3 {[%clk 0:00:03]}  Rxg6 {[%clk 0:00:04]} 49. Ra6 {[%clk 0:00:04]}  Nf5 {[%clk 0:00:04]} 50. Re6 {[%clk 0:00:04]}  Kh7 {[%clk 0:00:04]} 51. e4 {[%clk 0:00:04]}  Ng7 {[%clk 0:00:05]} 52. Re7 {[%clk 0:00:04]}  Kh6 {[%clk 0:00:05]} 53. f3 {[%clk 0:00:04]}  Rg1 {[%clk 0:00:05]} 54. Rf7 {[%clk 0:00:05]}  Kg6 {[%clk 0:00:05]} 55. Rd7 {[%clk 0:00:05]}  Rf1 {[%clk 0:00:05]} 56. Kg2 {[%clk 0:00:05]}  Re1 {[%clk 0:00:05]} 57. Kf2 {[%clk 0:00:05]}  Ra1 {[%clk 0:00:05]} 58. Kg3 {[%clk 0:00:05]}  Ra2 {[%clk 0:00:05]} 59. f4 {[%clk 0:00:06]}  exf4+ {[%clk 0:00:04]} 60. Kxf4 {[%clk 0:00:06]}  Ne6+ {[%clk 0:00:04]} 61. Kg3 {[%clk 0:00:06]}  Ra3+ {[%clk 0:00:05]} 62. Kg2 {[%clk 0:00:06]}  Nf4+ {[%clk 0:00:05]} 63. Kf2 {[%clk 0:00:07]}  Rh3 {[%clk 0:00:04]} 64. Rxd4 {[%clk 0:00:06]}  Rxh4 {[%clk 0:00:04]} 65. Kg3 {[%clk 0:00:07]}  Rg4+ {[%clk 0:00:04]} 66. Kf3 {[%clk 0:00:08]}  Ne6 {[%clk 0:00:04]} 67. Rd6 {[%clk 0:00:08]}  Ng5+ {[%clk 0:00:05]} 68. Ke3 {[%clk 0:00:07]}  Rxe4+ {[%clk 0:00:06]} 69. Kd3 {[%clk 0:00:07]}  Re5 {[%clk 0:00:07]} 70. Rd4 {[%clk 0:00:07]}  Rf5 {[%clk 0:00:07]} 71. Rh4 {[%clk 0:00:07]}  Rf3+ {[%clk 0:00:07]} 72. Ke2 {[%clk 0:00:07]}  Rh3 {[%clk 0:00:08]} 73. Rf4 {[%clk 0:00:07]}  h4 {[%clk 0:00:08]} 74. Kf2 {[%clk 0:00:07]}  Rh1 {[%clk 0:00:08]} 75. Kg2 {[%clk 0:00:07]}  Ra1 {[%clk 0:00:06]} 76. Rxh4 {[%clk 0:00:07]}  Ra2+ {[%clk 0:00:07]} 77. Kg3 {[%clk 0:00:07]}  f5 {[%clk 0:00:07]} 78. Rb4 {[%clk 0:00:07]}  Ne4+ {[%clk 0:00:06]} 79. Kf4 {[%clk 0:00:08]}  Rf2+ {[%clk 0:00:05]} 80. Ke3 {[%clk 0:00:08]}  Rf1 {[%clk 0:00:05]} 81. Ke2 {[%clk 0:00:08]}  Rh1 {[%clk 0:00:06]} 82. Kf3 {[%clk 0:00:08]}  Kg5 {[%clk 0:00:06]} 83. Rb8 {[%clk 0:00:07]}  Rh3+ {[%clk 0:00:06]} 84. Kg2 {[%clk 0:00:08]}  Ra3 {[%clk 0:00:07]} 85. Rb4 {[%clk 0:00:06]}  Kf4 {[%clk 0:00:07]} 86. Kf1 {[%clk 0:00:06]}  Kf3 {[%clk 0:00:06]} 87. Kg1 {[%clk 0:00:06]}  f4 {[%clk 0:00:05]} 88. Rb2 {[%clk 0:00:06]}  Ng3 {[%clk 0:00:02]} 89. Rf2+ {[%clk 0:00:04]}  Kg4 {[%clk 0:00:02]} 90. Kg2 {[%clk 0:00:04]}  Ra1 {[%clk 0:00:02]} 91. Rb2 {[%clk 0:00:04]}  Ra4 {[%clk 0:00:02]} 92. Rc2 {[%clk 0:00:04]}  Nf5 {[%clk 0:00:03]} 93. Rb2 {[%clk 0:00:04]}  Ne3+ {[%clk 0:00:04]} 94. Kf2 {[%clk 0:00:05]}  Ra1 {[%clk 0:00:05]} 95. Rb8 {[%clk 0:00:05]}  Rf1+ {[%clk 0:00:05]} 96. Ke2 {[%clk 0:00:06]}  Rh1 {[%clk 0:00:06]} 97. Rg8+ {[%clk 0:00:05]}  Kh3 {[%clk 0:00:05]} 98. Kf3 {[%clk 0:00:06]}  Rf1+ {[%clk 0:00:05]} 99. Ke2 {[%clk 0:00:06]}  Ra1 {[%clk 0:00:03]} 100. Kf3 {[%clk 0:00:07]}  Ng2 {[%clk 0:00:01]} 101. Rh8+ {[%clk 0:00:06]}  Nh4+ {[%clk 0:00:01]} 102. Kxf4 {[%clk 0:00:07]}  Rf1+ {[%clk 0:00:02]} 103. Kg5 {[%clk 0:00:07]}  Kg3 {[%clk 0:00:02]} 104. Rxh4 {[%clk 0:00:07]}  Rf5+ {[%clk 0:00:03]} 105. Kxf5 {[%clk 0:00:07]}  Kxh4 {[%clk 0:00:04]} 1/2-1/2

[Event "November 21 Early 2023"]
[Site "https://www.chess.com"]
[Date "2023.11.21"]
[Round "5"]
[White "Rose, Felix"]
[Black "Alinasab, Mobina"]
[Result "0-1"]
[Board "132"]
[TimeControl "180+1"]
[WhiteFideId "5105722"]
[BlackFideId "12528897"]
[WhiteElo "2039"]
[BlackElo "2052"]
[WhiteTeam "MEX"]
[BlackTeam "IRI"]
[WhiteClock "0:00:00"]
[BlackClock "0:00:24"]

1. e4 {[%clk 0:03:00]}  c5 {[%clk 0:02:59]} 2. Nf3 {[%clk 0:02:59]}  d6 {[%clk 0:03:00]} 3. d4 {[%clk 0:02:58]}  cxd4 {[%clk 0:03:01]} 4. Nxd4 {[%clk 0:02:59]}  Nf6 {[%clk 0:03:01]} 5. Nc3 {[%clk 0:02:58]}  a6 {[%clk 0:03:02]} 6. h3 {[%clk 0:02:58]}  Bd7 {[%clk 0:02:55]} 7. g4 {[%clk 0:02:57]}  g6 {[%clk 0:02:55]} 8. Be3 {[%clk 0:02:56]}  Nc6 {[%clk 0:02:55]} 9. Qd2 {[%clk 0:02:56]}  Nxd4 {[%clk 0:02:52]} 10. Bxd4 {[%clk 0:02:54]}  Bg7 {[%clk 0:02:52]} 11. O-O-O {[%clk 0:02:53]}  O-O {[%clk 0:02:51]} 12. Be2 {[%clk 0:02:48]}  Bc6 {[%clk 0:02:48]} 13. g5 {[%clk 0:01:42]}  Nd7 {[%clk 0:02:04]} 14. h4 {[%clk 0:01:34]}  Nc5 {[%clk 0:01:37]} 15. Bxg7 {[%clk 0:01:19]}  Kxg7 {[%clk 0:01:38]} 16. h5 {[%clk 0:01:18]}  e5 {[%clk 0:01:23]} 17. f3 {[%clk 0:01:12]}  Ne6 {[%clk 0:01:23]} 18. h6+ {[%clk 0:00:45]}  Kh8 {[%clk 0:01:12]} 19. Rhg1 {[%clk 0:00:40]}  Nd4 {[%clk 0:01:08]} 20. Qe3 {[%clk 0:00:21]}  Ne6 {[%clk 0:00:55]} 21. Bc4 {[%clk 0:00:12]}  Nf4 {[%clk 0:00:53]} 22. Ne2 {[%clk 0:00:08]}  Nxe2+ {[%clk 0:00:48]} 23. Qxe2 {[%clk 0:00:08]}  f5 {[%clk 0:00:48]} 24. Bd5 {[%clk 0:00:06]}  Bxd5 {[%clk 0:00:46]} 25. Rxd5 {[%clk 0:00:07]}  fxe4 {[%clk 0:00:46]} 26. fxe4 {[%clk 0:00:08]}  Qb6 {[%clk 0:00:42]} 27. Rgd1 {[%clk 0:00:07]}  Rad8 {[%clk 0:00:34]} 28. Qd2 {[%clk 0:00:06]}  Rf2 {[%clk 0:00:26]} 29. Rxd6 {[%clk 0:00:00]}  Rxd2 {[%clk 0:00:24]} 0-1